[Event "Moscow ch-T 2018"]
[Site "Moscow"]
[Date "2018.09.27"]
[Round "5"]
[White "Dudin, Gleb"]
[Black "Krylov, Aleksey"]
[Result "1/2-1/2"]
[ECO "A11"]
[WhiteElo "2208"]
[BlackElo "2229"]
[Annotator "ChessBase"]
[PlyCount "149"]
[EventDate "2018.09.20"]
[EventType "team-tourn"]
[EventCountry "RUS"]
[SourceTitle "playchess.com"]
[Source "ChessBase"]
[SourceQuality "1"]
[TimeControl "5400+30"]

1. c4 {[%emt 0:01:02]} c6 {[%emt 0:04:28]} 2. Nf3 {[%emt 0:01:51]} Nf6 {[%emt 0:00:28]} 3. Nc3 {[%emt 0:00:39]} d5 {[%emt 0:00:08]} 4. e3 {[%emt 0:00:13]} e6 {[%emt 0:02:01]} 5. b3 {[%emt 0:00:59]} Nbd7 {[%emt 0:00:24]} 6. Bb2 {[%emt 0:00:18]} Bd6 {[%emt 0:00:23]} 7. Be2 {[%emt 0:02:35]} Qe7 {[%emt 0:00:59]} 8. a3 {[%emt 0:03:01]} O-O {[%emt 0:05:36]} 9. Qc2 {[%emt 0:02:55]} a6 {[%emt 0:17:48]} 10. O-O {[%emt 0:34:57]} e5 {[%emt 0:11:13]} 11. d3 {[%emt 0:08:13]} Re8 {[%emt 0:05:17]} 12. b4 {[%emt 0:11:40]} Nf8 {[%emt 0:06:39]} 13. c5 {[%emt 0:02:14]} Bc7 {[%emt 0:00:46]} 14. e4 {[%emt 0:00:30]} Ng6 {[%emt 0:04:41]} 15. Rfe1 {[%emt 0:01:56]} Be6 {[%emt 0:10:22]} 16. Bf1 {[%emt 0:01:57]} d4 {[%emt 0:04:49]} 17. Ne2 {[%emt 0:09:02]} Nh5 {[%emt 0:04:27]} 18. Ng3 {[%emt 0:05:32]} Nhf4 {[%emt 0:01:51]} 19. Nd2 {[%emt 0:00:16]} Qd7 {[%emt 0:04:20]} 20. Nc4 {[%emt 0:00:40]} h5 {[%emt 0:00:34]} 21. Bc1 {[%emt 0:05:56]} h4 {[%emt 0:02:00]} 22. Nh1 {[%emt 0:01:13]} Bxc4 {[%emt 0:03:02]} 23. Qxc4 {[%emt 0:01:55]} Qg4 {[%emt 0:00:15]} 24. g3 {[%emt 0:01:26]} Nh3+ {[%emt 0:03:12]} 25. Bxh3 {[%emt 0:00:06]} Qxh3 {[%emt 0:00:05]} 26. f3 {[%emt 0:00:50]} hxg3 {[%emt 0:00:25]} 27. hxg3 {[%emt 0:00:20]} Re6 {[%emt 0:01:21]} 28. Ra2 {[%emt 0:00:33]} Rf6 {[%emt 0:01:41]} 29. Rh2 {[%emt 0:00:42]} Qe6 {[%emt 0:00:16]} 30. Qxe6 {[%emt 0:00:55]} fxe6 {[%emt 0:00:56]} 31. Rf1 {[%emt 0:00:31]} a5 {[%emt 0:02:38]} 32. b5 {[%emt 0:00:27]} cxb5 {[%emt 0:00:18]} 33. Rb2 {[%emt 0:00:04]} b4 {[%emt 0:00:03]} 34. axb4 {[%emt 0:00:07]} b6 {[%emt 0:01:27]} 35. cxb6 {[%emt 0:00:43]} Bxb6 {[%emt 0:00:04]} 36. Bg5 {[%emt 0:00:05]} Rff8 {[%emt 0:00:47]} 37. bxa5 {[%emt 0:00:35]} Bxa5 {[%emt 0:00:14]} 38. Kg2 {[%emt 0:00:59]} Rfb8 {[%emt 0:02:11]} 39. Rc2 {[%emt 0:00:59]} Rc8 {[%emt 0:00:14]} 40. Rfc1 {[%emt 0:00:25]} Rxc2+ {[%emt 0:00:05]} 41. Rxc2 {[%emt 0:00:05]} Bb4 {[%emt 0:00:37]} 42. Nf2 {[%emt 0:01:00]} Ra3 {[%emt 0:00:17]} 43. Bd2 {[%emt 0:00:32]} Be7 {[%emt 0:01:23]} 44. Kf1 {[%emt 0:00:28]} Nf8 {[%emt 0:00:12]} 45. Ke2 {[%emt 0:00:23]} Kf7 {[%emt 0:00:09]} 46. Ng4 {[%emt 0:00:37]} Nd7 {[%emt 0:00:31]} 47. Rc7 {[%emt 0:00:30]} Ke8 {[%emt 0:00:03]} 48. Rc8+ {[%emt 0:00:22]} Kf7 {[%emt 0:00:09]} 49. Rc7 {[%emt 0:00:02]} Ke8 {[%emt 0:00:06]} 50. Rc8+ {[%emt 0:01:05]} Kf7 {[%emt 0:00:04]} 51. Rc2 {[%emt 0:00:28]} Bd6 {[%emt 0:00:28]} 52. Bc1 {[%emt 0:00:31]} Rb3 {[%emt 0:00:13]} 53. Rb2 {[%emt 0:00:32]} Nc5 {[%emt 0:00:58]} 54. Rxb3 {[%emt 0:00:29]} Nxb3 {[%emt 0:00:03]} 55. Bg5 {[%emt 0:00:30]} Ke8 {[%emt 0:01:06]} 56. Kd1 {[%emt 0:00:30]} Kd7 {[%emt 0:00:11]} 57. Kc2 {[%emt 0:00:28]} Nc5 {[%emt 0:00:19]} 58. Bd2 {[%emt 0:00:25]} Kc6 {[%emt 0:01:20]} 59. Ba5 {[%emt 0:00:38]} Nb7 {[%emt 0:00:17]} 60. Bd2 {[%emt 0:00:31]} Kb5 {[%emt 0:00:21]} 61. Nf2 {[%emt 0:00:30]} Nd8 {[%emt 0:00:28]} 62. Nd1 {[%emt 0:00:30]} Nc6 {[%emt 0:00:20]} 63. Nb2 {[%emt 0:00:30]} Ba3 {[%emt 0:01:11]} 64. Nc4 {[%emt 0:00:27]} Be7 {[%emt 0:00:05]} 65. Be1 {[%emt 0:00:35]} Kc5 {[%emt 0:02:01]} 66. Kd2 {[%emt 0:00:29]} Bd8 {[%emt 0:00:35]} 67. Ke2 {[%emt 0:00:20]} Bc7 {[%emt 0:00:08]} 68. Bd2 {[%emt 0:00:40]} Kb5 {[%emt 0:00:42]} 69. Kd1 {[%emt 0:00:30]} Ka4 {[%emt 0:00:14]} 70. Kc2 {[%emt 0:00:30]} Nb4+ {[%emt 0:01:20]} 71. Bxb4 {[%emt 0:00:25]} Kxb4 {[%emt 0:00:01]} 72. Kb2 {[%emt 0:00:19]} Ka4 {[%emt 0:00:47]} 73. Kc2 {[%emt 0:00:31]} Kb4 {[%emt 0:00:04]} 74. Kb2 {[%emt 0:00:04]} Ka4 {[%emt 0:00:04]} 75. Kc2 1/2-1/2

[Event "Moscow ch-T 2018"]
[Site "Moscow"]
[Date "2018.09.29"]
[Round "6"]
[White "Tsoi, Vladislav"]
[Black "Mayorov, Vasili"]
[Result "0-1"]
[ECO "B10"]
[WhiteElo "2079"]
[BlackElo "2026"]
[Annotator "NA RC"]
[PlyCount "72"]
[EventDate "2018.09.20"]
[EventType "team-tourn"]
[EventCountry "RUS"]
[SourceTitle "playchess.com"]
[Source "ChessBase"]
[SourceQuality "1"]
[TimeControl "5400+30"]

{[%evp 28,69,-29,-53,-100,-82,-101,-117,-104,-224,-190,-213,-193,-206,-153,-219,-194,-236,-180,-292,-325,-319,-276,32767,32767,32767,32767,32767,32767,32767,32767,-716,-1325,-1326,-1470,-1172,-1595,-1263,-1252,-1404,-1202,-29975,-1693,-2159]} 1. e4 {[%emt 0:00:00]} c6 {[%emt 0:00:04]} 2. d3 {[%emt 0:00:27]} d5 {[%emt 0:00:33]} 3. Nd2 {[%emt 0:00:06]} g6 {[%emt 0:01:20]} 4. g3 {[%emt 0:00:08]} Bg7 {[%emt 0:00:08]} 5. Bg2 {[%emt 0:00:06]} Nf6 {[%emt 0:00:49]} 6. Ngf3 {[%emt 0:03:48]} O-O {[%emt 0:00:54]} 7. O-O {[%emt 0:00:10]} Nbd7 {[%emt 0:01:45]} 8. e5 {[%emt 0:03:56] A07: Réti Opening: New York and Capablanca Systems} Ng4 {[%emt 0:01:13]} 9. e6 $146 {[%emt 0:02:30]} ({Predecessor:} 9. d4 f6 10. h3 Nh6 11. exf6 Bxf6 12. Qe2 Nf7 13. c3 Re8 14. Nb3 a5 15. Bf4 a4 {0-1 (50) Radu,C (2026)-Manolache,M (2527) Eforie Nord 2010}) 9... fxe6 {[%emt 0:03:16]} 10. Ng5 {[%emt 0:06:12]} Ndf6 {[%emt 0:00:40]} 11. h3 {[%emt 0:02:46]} Nh6 {[%emt 0:01:48]} 12. Ndf3 {[%emt 0:00:53]} Nf7 {[%emt 0:06:49]} 13. h4 {[%emt 0:12:42]} Nxg5 {[%emt 0:03:44]} 14. hxg5 {[%emt 0:00:08]} Nd7 {[%emt 0:07:59]} 15. Bh3 {[%emt 0:05:40] [#]} e5 $1 {[%emt 0:02:46]} 16. Qe2 {[%emt 0:00:16]} Qc7 {[%emt 0:07:38]} 17. Kg2 {[%emt 0:08:03]} Nc5 {[%emt 0:02:09]} 18. Rh1 {[%emt 0:11:28]} (18. Bxc8 $17 Raxc8 19. Be3) 18... Bxh3+ {[%emt 0:03:40]} 19. Rxh3 {[%emt 0:00:07]} Rf7 {[%emt 0:00:38]} 20. Nh2 {[%emt 0:05:34]} Ne6 {[%emt 0:19:03]} 21. Qg4 {[%emt 0:04:28]} (21. Be3 $17) 21... Nd4 {[%emt 0:04:24]} 22. Bd2 {[%emt 0:05:04]} Raf8 {[%emt 0:01:25]} 23. f4 {[%emt 0:03:41]} (23. Rf1 {was worth a try.}) 23... exf4 {[%emt 0:00:50]} 24. gxf4 {[%emt 0:00:32]} e5 {[%emt 0:00:34]} 25. Rh1 {[%emt 0:00:23]} exf4 {[%emt 0:07:04]} 26. Rxh7 Kxh7 {[%emt 0:02:05]} 27. Qh4+ {[%emt 0:00:17]} Kg8 {[%emt 0:00:05]} 28. Ng4 {[%emt 0:00:04]} Re8 {[%emt 0:01:16]} 29. Qh7+ {[%emt 0:02:13]} Kf8 {[%emt 0:00:06]} 30. Nh6 {[%emt 0:00:45]} f3+ {[%emt 0:02:54]} 31. Kf1 {[%emt 0:01:02]} Bxh6 {[%emt 0:01:47]} 32. Qxh6+ {[%emt 0:05:18]} Rg7 {[%emt 0:01:14]} 33. Qh4 {[%emt 0:00:12]} Qe5 {[%emt 0:00:45]} 34. Bb4+ {[%emt 0:00:09]} Kf7 $19 {[%emt 0:00:39]} 35. Rh2 {[%emt 0:00:15]} Nf5 {[%emt 0:07:05]} 36. Qh3 {[%emt 0:00:06]} Qg3 {[%emt 0:00:50]} 0-1

[Event "Moscow ch-T 2018"]
[Site "Moscow"]
[Date "2018.09.30"]
[Round "7"]
[White "Saulin, Dmitri"]
[Black "Makarian, Rudik"]
[Result "0-1"]
[ECO "E01"]
[WhiteElo "2369"]
[BlackElo "2361"]
[Annotator "NA"]
[PlyCount "54"]
[EventDate "2018.09.20"]
[EventType "team-tourn"]
[EventCountry "RUS"]
[SourceTitle "playchess.com"]
[Source "ChessBase"]
[SourceQuality "1"]
[TimeControl "5400+30"]

1. d4 {[%emt 0:00:00]} Nf6 {[%emt 0:00:00]} 2. c4 {[%emt 0:00:00]} e6 {[%emt 0:00:00]} 3. g3 {[%emt 0:00:14]} d5 {[%emt 0:00:00]} 4. Bg2 {[%emt 0:00:07]} Bb4+ {[%emt 0:00:27]} 5. Bd2 {[%emt 0:00:08]} Be7 {[%emt 0:00:05]} 6. Nf3 {[%emt 0:00:12]} O-O {[%emt 0:00:06]} 7. O-O {[%emt 0:00:24]} Nbd7 {[%emt 0:00:04]} 8. Qc2 {[%emt 0:02:28]} c6 {[%emt 0:01:10]} 9. a4 {[%emt 0:05:19]} a5 {[%emt 0:11:27]} 10. Rc1 {[%emt 0:05:24]} Ne4 {[%emt 0:05:27]} 11. Be1 {[%emt 0:00:15]} f5 {[%emt 0:01:24]} 12. e3 {[%emt 0:01:13]} Bd6 {[%emt 0:01:16]} 13. Nbd2 {[%emt 0:02:30]} g5 {[%emt 0:02:27]} 14. Nxe4 {[%emt 0:09:14]} fxe4 {[%emt 0:11:02]} 15. Nd2 {[%emt 0:03:54]} g4 {[%emt 0:03:20]} 16. Nb1 {[%emt 0:06:12]} Nf6 {[%emt 0:04:29]} 17. Nc3 {[%emt 0:08:44]} h5 {[%emt 0:05:27]} 18. Ne2 {[%emt 0:00:17]} Nh7 {[%emt 0:00:11]} 19. Nf4 {[%emt 0:00:24]} Ng5 {[%emt 0:00:05]} 20. b4 {[%emt 0:00:17]} Nf3+ {[%emt 0:01:35]} 21. Bxf3 {[%emt 0:04:08]} gxf3 {[%emt 0:00:25]} 22. h4 {[%emt 0:26:48]} Qd7 {[%emt 0:08:52]} 23. Bd2 {[%emt 0:12:50]} Bxf4 {[%emt 0:00:34]} 24. exf4 {[%emt 0:00:22]} e5 {[%emt 0:00:05]} 25. Qd1 {[%emt 0:01:15]} exf4 {[%emt 0:00:10]} 26. cxd5 {[%emt 0:02:22]} fxg3 {[%emt 0:00:38]} 27. Be3 {[%emt 0:05:16]} Qh3 {[%emt 0:00:07]} 0-1

[Event "Moscow ch-T 2018"]
[Site "Moscow"]
[Date "2018.09.30"]
[Round "7"]
[White "Pavlov, Danila"]
[Black "Kovtunenko, Alexandr"]
[Result "1-0"]
[ECO "B75"]
[WhiteElo "2318"]
[BlackElo "2139"]
[Annotator "NA"]
[PlyCount "63"]
[EventDate "2018.09.20"]
[EventType "team-tourn"]
[EventCountry "RUS"]
[SourceTitle "playchess.com"]
[Source "ChessBase"]
[SourceQuality "1"]
[TimeControl "5400+30"]

1. e4 {[%emt 0:00:00]} c5 {[%emt 0:07:37]} 2. Nf3 {[%emt 0:00:00]} d6 {[%emt 0:00:55]} 3. d4 {[%emt 0:00:00]} cxd4 {[%emt 0:00:03]} 4. Nxd4 {[%emt 0:00:00]} Nf6 {[%emt 0:00:06]} 5. Nc3 {[%emt 0:00:00]} g6 {[%emt 0:00:07]} 6. Be3 {[%emt 0:00:00]} Bg7 {[%emt 0:00:06]} 7. f3 {[%emt 0:00:00]} Nc6 {[%emt 0:00:07]} 8. Qd2 {[%emt 0:00:00]} h5 {[%emt 0:00:18]} 9. O-O-O {[%emt 0:00:11]} Bd7 {[%emt 0:00:06]} 10. h3 {[%emt 0:14:03]} h4 {[%emt 0:01:05]} 11. f4 {[%emt 0:04:52]} Rc8 {[%emt 0:02:29]} 12. Bd3 {[%emt 0:15:11]} Qc7 {[%emt 0:06:52]} 13. Kb1 {[%emt 0:08:21]} Qb8 {[%emt 0:10:35]} 14. Qf2 {[%emt 0:02:25]} Nb4 {[%emt 0:06:38]} 15. Rhe1 {[%emt 0:05:09]} Rxc3 {[%emt 0:16:47]} 16. bxc3 {[%emt 0:00:18]} Na6 {[%emt 0:00:12]} 17. Nb3 {[%emt 0:12:06]} Qc7 {[%emt 0:12:41]} 18. Bxa7 {[%emt 0:15:02]} Qxc3 {[%emt 0:00:54]} 19. e5 {[%emt 0:01:12]} dxe5 {[%emt 0:04:02]} 20. fxe5 {[%emt 0:00:24]} Nh5 {[%emt 0:00:28]} 21. Bd4 {[%emt 0:08:41]} Qc8 {[%emt 0:00:18]} 22. Qxh4 {[%emt 0:01:06]} O-O {[%emt 0:10:36]} 23. Rf1 {[%emt 0:00:48]} Nb4 {[%emt 0:04:56]} 24. e6 {[%emt 0:05:03]} Qa8 {[%emt 0:04:14]} 25. Bxg7 {[%emt 0:00:14]} Qxa2+ {[%emt 0:00:19]} 26. Kc1 {[%emt 0:00:04]} Nxd3+ {[%emt 0:00:42]} 27. Rxd3 {[%emt 0:00:13]} Rc8 {[%emt 0:01:42]} 28. exf7+ {[%emt 0:00:34]} Kh7 {[%emt 0:00:45]} 29. Bb2 {[%emt 0:00:23]} Bb5 {[%emt 0:01:55]} 30. f8=Q {[%emt 0:00:22]} Rxc2+ {[%emt 0:00:39]} 31. Kxc2 {[%emt 0:00:03]} Bxd3+ {[%emt 0:00:07]} 32. Kc3 {[%emt 0:00:04]} 1-0

[Event "Moscow ch-T 2018"]
[Site "Moscow"]
[Date "2018.09.30"]
[Round "7"]
[White "Klukin, Kirill"]
[Black "Elishev, Ivan"]
[Result "1-0"]
[ECO "A48"]
[WhiteElo "2293"]
[BlackElo "2197"]
[Annotator "NA"]
[PlyCount "83"]
[EventDate "2018.09.20"]
[EventType "team-tourn"]
[EventCountry "RUS"]
[SourceTitle "playchess.com"]
[Source "ChessBase"]
[SourceQuality "1"]
[TimeControl "5400+30"]

1. d4 {[%emt 0:08:13]} Nf6 {[%emt 0:00:00]} 2. Nf3 {[%emt 0:00:07]} g6 {[%emt 0:00:00]} 3. c4 {[%emt 0:00:04]} Bg7 {[%emt 0:00:00]} 4. Nc3 {[%emt 0:00:04]} d5 {[%emt 0:00:00]} 5. cxd5 {[%emt 0:00:04]} Nxd5 {[%emt 0:00:00]} 6. Na4 {[%emt 0:00:08]} O-O {[%emt 0:18:38]} 7. e4 {[%emt 0:00:06]} Nf6 {[%emt 0:02:08]} 8. Qc2 {[%emt 0:03:32]} b6 {[%emt 0:02:47]} 9. Bf4 {[%emt 0:06:18]} Bb7 {[%emt 0:00:22]} 10. Nc3 {[%emt 0:00:54]} Nbd7 {[%emt 0:12:35]} 11. Rd1 {[%emt 0:03:37]} e6 {[%emt 0:05:13]} 12. Bc4 {[%emt 0:01:43]} Qe7 {[%emt 0:10:39]} 13. O-O {[%emt 0:02:36]} a6 {[%emt 0:03:19]} 14. Rfe1 {[%emt 0:03:00]} Rfc8 {[%emt 0:04:55]} 15. Bg5 {[%emt 0:11:18]} h6 {[%emt 0:01:12]} 16. Bh4 {[%emt 0:01:31]} g5 {[%emt 0:00:44]} 17. Bg3 {[%emt 0:08:36]} b5 {[%emt 0:00:40]} 18. Bf1 {[%emt 0:02:00]} Nh5 {[%emt 0:11:25]} 19. d5 {[%emt 0:06:08]} e5 {[%emt 0:00:46]} 20. Ne2 {[%emt 0:00:46]} c5 {[%emt 0:01:58]} 21. h4 {[%emt 0:02:05]} Nf4 {[%emt 0:01:25]} 22. hxg5 {[%emt 0:01:40]} hxg5 {[%emt 0:00:09]} 23. Bh2 {[%emt 0:00:18]} Qf6 {[%emt 0:01:02]} 24. Ng3 {[%emt 0:02:20]} Nf8 {[%emt 0:09:27]} 25. Nf5 {[%emt 0:00:57]} N8g6 {[%emt 0:00:32]} 26. g3 {[%emt 0:01:23]} g4 {[%emt 0:00:42]} 27. N3h4 {[%emt 0:02:00]} Nxh4 {[%emt 0:03:06]} 28. Nxh4 {[%emt 0:00:10]} Ng6 {[%emt 0:02:37]} 29. Nf5 {[%emt 0:00:44]} Ne7 {[%emt 0:00:44]} 30. Ne3 {[%emt 0:00:18]} Bh6 {[%emt 0:03:12]} 31. Nxg4 {[%emt 0:00:41]} Qg7 {[%emt 0:00:02]} 32. Bh3 {[%emt 0:00:21]} Bg5 {[%emt 0:01:36]} 33. Ne3 {[%emt 0:08:10]} Qh6 {[%emt 0:00:02]} 34. Bxc8 {[%emt 0:03:30]} Rxc8 {[%emt 0:00:01]} 35. d6 {[%emt 0:02:26]} Nc6 {[%emt 0:00:55]} 36. Nf5 {[%emt 0:00:21]} Qh3 {[%emt 0:00:27]} 37. d7 {[%emt 0:01:09]} Rd8 {[%emt 0:00:23]} 38. Qxc5 {[%emt 0:01:02]} Nd4 {[%emt 0:01:32]} 39. Nxd4 {[%emt 0:00:48]} Qxd7 {[%emt 0:03:37]} 40. Qxe5 {[%emt 0:00:43]} Bh6 {[%emt 0:00:24]} 41. Nf5 {[%emt 0:00:28]} Qxd1 {[%emt 0:00:12]} 42. Nxh6+ {[%emt 0:00:05]} 1-0

[Event "Moscow ch-T 2018"]
[Site "Moscow"]
[Date "2018.09.30"]
[Round "7"]
[White "Kulagin, Maxim"]
[Black "Dvalishvili, Pavel S."]
[Result "1-0"]
[ECO "B22"]
[WhiteElo "2274"]
[BlackElo "2408"]
[Annotator "NA"]
[PlyCount "45"]
[EventDate "2018.09.20"]
[EventType "team-tourn"]
[EventCountry "RUS"]
[SourceTitle "playchess.com"]
[Source "ChessBase"]
[SourceQuality "1"]
[TimeControl "5400+30"]

1. e4 {[%emt 0:00:00]} c5 {[%emt 0:00:00]} 2. c3 {[%emt 0:00:00]} g6 {[%emt 0:00:44]} 3. d4 {[%emt 0:00:00]} Qc7 {[%emt 0:00:10]} 4. Nf3 {[%emt 0:00:38]} Bg7 {[%emt 0:00:10]} 5. Be3 {[%emt 0:01:38]} d6 {[%emt 0:01:11]} 6. h3 {[%emt 0:00:25]} Nd7 {[%emt 0:01:12]} 7. Bd3 {[%emt 0:01:21]} Ngf6 {[%emt 0:00:22]} 8. O-O {[%emt 0:00:12]} O-O {[%emt 0:00:02]} 9. Re1 {[%emt 0:00:37]} b6 {[%emt 0:04:22]} 10. Nbd2 {[%emt 0:07:03]} Bb7 {[%emt 0:00:57]} 11. a4 {[%emt 0:00:21]} a6 {[%emt 0:01:21]} 12. Qe2 {[%emt 0:01:48]} Rfe8 {[%emt 0:00:25]} 13. Rac1 {[%emt 0:02:10]} e5 {[%emt 0:04:00]} 14. d5 {[%emt 0:00:24]} Nh5 {[%emt 0:03:49]} 15. g3 {[%emt 0:04:06]} Nf8 {[%emt 0:00:33]} 16. Kh2 {[%emt 0:05:48]} Bc8 {[%emt 0:00:10]} 17. Ng1 {[%emt 0:04:58]} Nd7 {[%emt 0:14:27]} 18. b4 {[%emt 0:03:10]} Bf8 {[%emt 0:00:07]} 19. b5 {[%emt 0:01:59]} a5 {[%emt 0:00:20]} 20. Nc4 {[%emt 0:00:22]} Ng7 {[%emt 0:00:50]} 21. Bh6 {[%emt 0:00:53]} f5 {[%emt 0:04:31]} 22. Bxg7 {[%emt 0:00:30]} fxe4 {[%emt 0:00:10]} 23. Bxf8 {[%emt 0:00:07]} 1-0

[Event "Moscow ch-T 2018"]
[Site "Moscow"]
[Date "2018.09.30"]
[Round "7"]
[White "Tsvetkov, Andrey"]
[Black "Komissarov, Alexey"]
[Result "1/2-1/2"]
[ECO "E91"]
[WhiteElo "2264"]
[BlackElo "2203"]
[Annotator "NA"]
[PlyCount "36"]
[EventDate "2018.09.20"]
[EventType "team-tourn"]
[EventCountry "RUS"]
[SourceTitle "playchess.com"]
[Source "ChessBase"]
[SourceQuality "1"]
[TimeControl "5400+30"]

1. d4 {[%emt 0:00:00]} Nf6 {[%emt 0:00:00]} 2. c4 {[%emt 0:00:00]} g6 {[%emt 0:00:15]} 3. Nc3 {[%emt 0:00:00]} Bg7 {[%emt 0:00:14]} 4. e4 {[%emt 0:00:00]} d6 {[%emt 0:00:17]} 5. Nf3 {[%emt 0:00:00]} O-O {[%emt 0:00:21]} 6. Be2 {[%emt 0:00:00]} Na6 {[%emt 0:00:25]} 7. O-O {[%emt 0:00:28]} e5 {[%emt 0:00:14]} 8. Be3 {[%emt 0:00:06]} h6 {[%emt 0:00:44]} 9. dxe5 {[%emt 0:02:42]} Ng4 {[%emt 0:00:42]} 10. Bd2 {[%emt 0:00:08]} Nxe5 {[%emt 0:02:22]} 11. Nxe5 {[%emt 0:02:41]} dxe5 {[%emt 0:00:58]} 12. Qc1 {[%emt 0:00:04]} Qh4 {[%emt 0:03:25]} 13. Be3 {[%emt 0:06:26]} c6 {[%emt 0:02:53]} 14. Rd1 {[%emt 0:18:52]} Nc7 {[%emt 0:03:55]} 15. g3 {[%emt 0:25:49]} Qh3 {[%emt 0:01:59]} 16. Bf1 {[%emt 0:00:16]} Qh5 {[%emt 0:00:41]} 17. Be2 {[%emt 0:00:15]} Qh3 {[%emt 0:01:05]} 18. Bf1 {[%emt 0:08:39]} Qh5 {[%emt 0:01:32]} 1/2-1/2

[Event "Moscow ch-T 2018"]
[Site "Moscow"]
[Date "2018.09.30"]
[Round "7"]
[White "Antonov, Alexandr"]
[Black "Maltsevskaya, Aleksandra"]
[Result "1-0"]
[ECO "B40"]
[WhiteElo "2220"]
[BlackElo "2234"]
[Annotator "NA"]
[PlyCount "115"]
[EventDate "2018.09.20"]
[EventType "team-tourn"]
[EventCountry "RUS"]
[SourceTitle "playchess.com"]
[Source "ChessBase"]
[SourceQuality "1"]
[TimeControl "5400+30"]

1. e4 {[%emt 0:14:47]} c5 {[%emt 0:00:00]} 2. Nf3 {[%emt 0:00:10]} e6 {[%emt 0:00:00]} 3. b3 {[%emt 0:00:04]} Nc6 {[%emt 0:00:55]} 4. Bb5 {[%emt 0:01:13]} Nge7 {[%emt 0:00:55]} 5. Bb2 {[%emt 0:00:21]} a6 {[%emt 0:00:10]} 6. Bxc6 {[%emt 0:00:08]} bxc6 {[%emt 0:01:37]} 7. e5 {[%emt 0:04:19]} Ng6 {[%emt 0:01:09]} 8. Na3 {[%emt 0:03:20]} Be7 {[%emt 0:02:54]} 9. Nc4 {[%emt 0:04:28]} O-O {[%emt 0:00:10]} 10. h4 {[%emt 0:05:06]} f5 {[%emt 0:06:42]} 11. g3 {[%emt 0:03:58]} a5 {[%emt 0:05:18]} 12. a4 {[%emt 0:01:30]} Ba6 {[%emt 0:02:18]} 13. h5 {[%emt 0:05:44]} Nh8 {[%emt 0:00:24]} 14. d3 {[%emt 0:01:24]} Nf7 {[%emt 0:01:50]} 15. Qd2 {[%emt 0:01:29]} d5 {[%emt 0:06:06]} 16. exd6 {[%emt 0:04:15]} Bf6 {[%emt 0:00:05]} 17. O-O-O {[%emt 0:04:18]} Bxc4 {[%emt 0:00:41]} 18. dxc4 {[%emt 0:00:38]} e5 {[%emt 0:00:14]} 19. Qe3 {[%emt 0:08:16]} e4 {[%emt 0:03:23]} 20. Nd2 {[%emt 0:01:28]} Bxb2+ {[%emt 0:10:37]} 21. Kxb2 {[%emt 0:00:01]} Qf6+ {[%emt 0:00:09]} 22. Kb1 {[%emt 0:06:29]} Rad8 {[%emt 0:02:37]} 23. Qxc5 {[%emt 0:02:32]} Rxd6 {[%emt 0:00:29]} 24. Kc1 {[%emt 0:02:01]} Rfd8 {[%emt 0:09:24]} 25. Nb1 {[%emt 0:00:15]} Ne5 {[%emt 0:01:20]} 26. Rxd6 {[%emt 0:05:01]} Rxd6 {[%emt 0:00:06]} 27. Qxa5 {[%emt 0:00:45]} Ng4 {[%emt 0:01:54]} 28. Qe1 {[%emt 0:04:27]} h6 {[%emt 0:00:06]} 29. Qe2 {[%emt 0:00:54]} Kh7 {[%emt 0:03:02]} 30. f3 {[%emt 0:01:38]} Qg5+ {[%emt 0:00:28]} 31. Kb2 {[%emt 0:00:50]} Nf6 {[%emt 0:00:18]} 32. g4 {[%emt 0:02:07]} exf3 {[%emt 0:06:44]} 33. Qe5 {[%emt 0:01:00]} Rd8 {[%emt 0:01:20]} 34. Qxf5+ {[%emt 0:01:10]} Qxf5 35. gxf5 {[%emt 0:00:04]} f2 {[%emt 0:00:30]} 36. Rf1 {[%emt 0:00:28]} Ng4 {[%emt 0:00:05]} 37. Nc3 {[%emt 0:04:25]} Re8 {[%emt 0:02:47]} 38. Nd1 {[%emt 0:00:37]} Re1 {[%emt 0:01:06]} 39. Nxf2 {[%emt 0:00:05]} Rxf1 {[%emt 0:00:04]} 40. Nxg4 {[%emt 0:00:06]} Rxf5 {[%emt 0:00:06]} 41. b4 {[%emt 0:00:04]} Rf4 {[%emt 0:02:14]} 42. Ne5 {[%emt 0:00:10]} Re4 {[%emt 0:00:07]} 43. Nd3 {[%emt 0:02:29]} Rxc4 {[%emt 0:01:18]} 44. Kb3 {[%emt 0:00:06]} Re4 {[%emt 0:00:12]} 45. a5 {[%emt 0:00:06]} g5 {[%emt 0:02:00]} 46. hxg6+ {[%emt 0:00:01]} Kxg6 {[%emt 0:00:06]} 47. a6 {[%emt 0:00:08]} h5 {[%emt 0:00:13]} 48. c4 {[%emt 0:00:24]} h4 {[%emt 0:10:04]} 49. a7 {[%emt 0:00:32]} Re8 {[%emt 0:00:05]} 50. b5 {[%emt 0:00:04]} cxb5 {[%emt 0:00:54]} 51. cxb5 {[%emt 0:00:01]} h3 {[%emt 0:02:50]} 52. Nf4+ {[%emt 0:01:01]} Kf5 {[%emt 0:00:06]} 53. Nxh3 {[%emt 0:00:14]} Re3+ {[%emt 0:00:36]} 54. Kc4 {[%emt 0:00:37]} Ra3 {[%emt 0:00:10]} 55. b6 {[%emt 0:00:28]} Ra4+ {[%emt 0:00:19]} 56. Kc5 {[%emt 0:00:35]} Ra5+ {[%emt 0:00:25]} 57. Kc6 {[%emt 0:00:23]} Ke6 {[%emt 0:00:43]} 58. Kb7 {[%emt 0:00:46]} 1-0